[Event "*** Qualifier 1: Titled Tuesday 3|2 Blitz"]
[Site "Chess.com"]
[Date "2017.04.04"]
[Round "5"]
[White "PelinGorki"]
[Black "Noukii"]
[Result "1-0"]
[WhiteElo "2387"]
[BlackElo "2647"]
[TimeControl "180+2"]
[EndTime "14:08:32 PDT"]
[Termination "PelinGorki won by resignation"]

1. e4 {[%clk 0:03:02]} 1... e5 {[%clk 0:02:58.6]} 2. Nc3 {[%clk 0:03:02.1]} 2...
Nf6 {[%clk 0:02:57.5]} 3. Bc4 {[%clk 0:03:02.7]} 3... Nc6 {[%clk 0:02:58.3]} 4.
d3 {[%clk 0:03:02.9]} 4... Bc5 {[%clk 0:02:59.9]} 5. f4 {[%clk 0:03:03.2]} 5...
d6 {[%clk 0:03:01.5]} 6. Nf3 {[%clk 0:03:03.2]} 6... Bg4 {[%clk 0:03:02]} 7. Na4
{[%clk 0:03:01.8]} 7... O-O {[%clk 0:02:35.3]} 8. Nxc5 {[%clk 0:03:00]} 8...
dxc5 {[%clk 0:02:37.2]} 9. O-O {[%clk 0:03:01.9]} 9... a6 {[%clk 0:02:29.6]} 10.
c3 {[%clk 0:03:00.3]} 10... b5 {[%clk 0:02:26.6]} 11. Bb3 {[%clk 0:02:59.6]}
11... Qd6 {[%clk 0:02:00]} 12. h3 {[%clk 0:02:57.5]} 12... Bxf3 {[%clk
0:02:00.9]} 13. Qxf3 {[%clk 0:02:55.6]} 13... Rad8 {[%clk 0:02:01.9]} 14. Bc2
{[%clk 0:02:54]} 14... Rfe8 {[%clk 0:01:58.6]} 15. f5 {[%clk 0:02:49.3]} 15...
b4 {[%clk 0:01:46.3]} 16. g4 {[%clk 0:02:48.8]} 16... bxc3 {[%clk 0:01:47]} 17.
bxc3 {[%clk 0:02:49.1]} 17... c4 {[%clk 0:01:48.2]} 18. dxc4 {[%clk 0:02:48]}
18... Qc5+ {[%clk 0:01:49.6]} 19. Be3 {[%clk 0:02:41.8]} 19... Qxc4 {[%clk
0:01:50.9]} 20. g5 {[%clk 0:02:43.1]} 20... Nd7 {[%clk 0:01:16.8]} 21. Bb3
{[%clk 0:02:42.5]} 21... Qxc3 {[%clk 0:01:16.2]} 22. g6 {[%clk 0:02:43.8]} 22...
Rf8 {[%clk 0:01:12.5]} 23. Rac1 {[%clk 0:02:32.2]} 1-0

[Event "*** Qualifier 1: Titled Tuesday 3|2 Blitz"]
[Site "Chess.com"]
[Date "2017.04.04"]
[Round "5"]
[White "Alexander_Donchenko"]
[Black "jncool68"]
[Result "0-1"]
[WhiteElo "2580"]
[BlackElo "2537"]
[TimeControl "180+2"]
[EndTime "14:08:45 PDT"]
[Termination "jncool68 won by resignation"]

1. Nf3 {[%clk 0:03:02]} 1... c5 {[%clk 0:02:55.7]} 2. c4 {[%clk 0:03:02.9]} 2...
Nc6 {[%clk 0:02:56.8]} 3. Nc3 {[%clk 0:03:04]} 3... e5 {[%clk 0:02:57.4]} 4. g3
{[%clk 0:03:04.8]} 4... g6 {[%clk 0:02:58.1]} 5. Bg2 {[%clk 0:03:06]} 5... Bg7
{[%clk 0:02:59.4]} 6. O-O {[%clk 0:03:07.3]} 6... Nge7 {[%clk 0:03:00.3]} 7. a3
{[%clk 0:03:08.9]} 7... O-O {[%clk 0:03:00.6]} 8. Rb1 {[%clk 0:03:09.8]} 8... a5
{[%clk 0:03:01.5]} 9. Ne1 {[%clk 0:03:10.7]} 9... d6 {[%clk 0:03:02.6]} 10. Nc2
{[%clk 0:03:11.8]} 10... Be6 {[%clk 0:03:03.8]} 11. Ne3 {[%clk 0:03:13.4]} 11...
Qd7 {[%clk 0:03:03.3]} 12. Ned5 {[%clk 0:03:13.7]} 12... Rae8 {[%clk 0:03:01.1]}
13. d3 {[%clk 0:03:12]} 13... Bh3 {[%clk 0:02:59.2]} 14. Bxh3 {[%clk 0:03:09.5]}
14... Qxh3 {[%clk 0:02:48.2]} 15. b4 {[%clk 0:03:10.6]} 15... axb4 {[%clk
0:02:47.8]} 16. axb4 {[%clk 0:03:12.5]} 16... Nxd5 {[%clk 0:02:48.8]} 17. Nxd5
{[%clk 0:03:12.2]} 17... cxb4 {[%clk 0:02:42.9]} 18. Nxb4 {[%clk 0:03:12.7]}
18... f5 {[%clk 0:02:43.6]} 19. e3 {[%clk 0:02:03.2]} 19... f4 {[%clk
0:02:41.4]} 20. Nxc6 {[%clk 0:02:02.7]} 20... f3 {[%clk 0:02:39.8]} 21. Qxf3
{[%clk 0:02:01.3]} 21... Rxf3 {[%clk 0:02:40.5]} 22. Rxb7 {[%clk 0:02:01.2]}
22... Rf7 {[%clk 0:02:26.8]} 23. Rb6 {[%clk 0:01:58.6]} 23... h5 {[%clk
0:02:18.3]} 24. Ba3 {[%clk 0:01:58]} 24... Bf8 {[%clk 0:02:19.5]} 25. Nb4 {[%clk
0:01:49]} 25... h4 {[%clk 0:02:15]} 26. Nd5 {[%clk 0:01:50.4]} 26... hxg3 {[%clk
0:02:09.8]} 27. hxg3 {[%clk 0:01:52.3]} 27... Re6 {[%clk 0:02:05]} 0-1

[Event "*** Qualifier 1: Titled Tuesday 3|2 Blitz"]
[Site "Chess.com"]
[Date "2017.04.04"]
[Round "5"]
[White "Aygehovit1992"]
[Black "proxy6"]
[Result "1-0"]
[WhiteElo "2445"]
[BlackElo "2208"]
[TimeControl "180+2"]
[EndTime "14:08:46 PDT"]
[Termination "Aygehovit1992 won by resignation"]

1. e4 {[%clk 0:03:02]} 1... c5 {[%clk 0:03:00]} 2. Nf3 {[%clk 0:03:02.8]} 2...
d6 {[%clk 0:03:01]} 3. d4 {[%clk 0:03:01.3]} 3... cxd4 {[%clk 0:03:00.9]} 4.
Nxd4 {[%clk 0:03:03.2]} 4... Nf6 {[%clk 0:03:01.9]} 5. Nc3 {[%clk 0:03:04.9]}
5... Nc6 {[%clk 0:03:03.1]} 6. Be2 {[%clk 0:03:04.9]} 6... g6 {[%clk 0:02:59.8]}
7. O-O {[%clk 0:03:04.2]} 7... Bg7 {[%clk 0:03:01.2]} 8. Nb3 {[%clk 0:03:05.1]}
8... O-O {[%clk 0:03:02.1]} 9. Bg5 {[%clk 0:03:06.2]} 9... a6 {[%clk 0:02:59.7]}
10. Re1 {[%clk 0:03:07.4]} 10... b5 {[%clk 0:03:00.7]} 11. Bf1 {[%clk
0:03:08.6]} 11... Bb7 {[%clk 0:03:01.3]} 12. Nd5 {[%clk 0:03:07.3]} 12... Nd7
{[%clk 0:02:56.1]} 13. c3 {[%clk 0:03:06.5]} 13... f6 {[%clk 0:02:49.4]} 14. Bf4
{[%clk 0:02:47.8]} 14... e6 {[%clk 0:02:30.3]} 15. Ne3 {[%clk 0:02:25.9]} 15...
Nde5 {[%clk 0:02:27.6]} 16. Bg3 {[%clk 0:02:24.1]} 16... Qe7 {[%clk 0:02:27.7]}
17. f4 {[%clk 0:02:24.6]} 17... Nf7 {[%clk 0:02:28.4]} 18. f5 {[%clk 0:02:19.9]}
18... Nce5 {[%clk 0:02:25.2]} 19. fxe6 {[%clk 0:02:19.3]} 19... Qxe6 {[%clk
0:02:26.4]} 20. Nd4 {[%clk 0:02:20.1]} 20... Qd7 {[%clk 0:02:17.3]} 21. Nd5
{[%clk 0:02:20.9]} 21... Nh6 {[%clk 0:01:57.6]} 22. Nb6 {[%clk 0:02:19.4]} 22...
Qe7 {[%clk 0:01:51.3]} 23. Nxa8 {[%clk 0:02:20.9]} 23... Bxa8 {[%clk 0:01:51.5]}
24. a4 {[%clk 0:02:22.1]} 24... bxa4 {[%clk 0:01:31.7]} 25. Qxa4 {[%clk
0:02:21.6]} 25... Bb7 {[%clk 0:01:17.7]} 26. Bxa6 {[%clk 0:02:20]} 26... Ra8
{[%clk 0:01:18.7]} 27. Qb3+ {[%clk 0:02:20.1]} 1-0

[Event "*** Qualifier 1: Titled Tuesday 3|2 Blitz"]
[Site "Chess.com"]
[Date "2017.04.04"]
[Round "5"]
[White "aa175"]
[Black "Kawhi_Leonard2"]
[Result "0-1"]
[WhiteElo "1875"]
[BlackElo "2203"]
[TimeControl "180+2"]
[EndTime "14:09:05 PDT"]
[Termination "Kawhi_Leonard2 won by checkmate"]

1. e4 {[%clk 0:03:02]} 1... c5 {[%clk 0:03:00.2]} 2. Nf3 {[%clk 0:03:03.5]} 2...
d6 {[%clk 0:03:01.4]} 3. d4 {[%clk 0:03:03.9]} 3... cxd4 {[%clk 0:03:02.4]} 4.
Nxd4 {[%clk 0:03:05.8]} 4... Nf6 {[%clk 0:03:03.3]} 5. Nc3 {[%clk 0:03:05.8]}
5... g6 {[%clk 0:03:04.9]} 6. Be3 {[%clk 0:03:05]} 6... Bg7 {[%clk 0:03:06.4]}
7. Bc4 {[%clk 0:03:05.7]} 7... O-O {[%clk 0:03:07.8]} 8. Qd2 {[%clk 0:03:06.6]}
8... Ng4 {[%clk 0:03:07]} 9. Be2 {[%clk 0:03:02.8]} 9... Nxe3 {[%clk 0:03:06.2]}
10. Qxe3 {[%clk 0:03:04.4]} 10... Nc6 {[%clk 0:03:07.4]} 11. Nxc6 {[%clk
0:03:05.3]} 11... bxc6 {[%clk 0:03:08.5]} 12. O-O {[%clk 0:03:05.3]} 12... Rb8
{[%clk 0:03:02.2]} 13. Rab1 {[%clk 0:02:55.7]} 13... Qa5 {[%clk 0:03:01]} 14. a3
{[%clk 0:02:10.8]} 14... Be6 {[%clk 0:02:54.6]} 15. Rfd1 {[%clk 0:01:46.8]}
15... Rb6 {[%clk 0:02:52.1]} 16. Qd2 {[%clk 0:00:47.1]} 16... Rfb8 {[%clk
0:02:43.7]} 17. Nd5 {[%clk 0:00:41.1]} 17... Qxd2 {[%clk 0:02:41.9]} 18. Nxe7+
{[%clk 0:00:42]} 18... Kf8 {[%clk 0:02:41.3]} 19. Nxg6+ {[%clk 0:00:40.7]} 19...
hxg6 {[%clk 0:02:41.2]} 20. Rxd2 {[%clk 0:00:42.6]} 20... Rxb2 {[%clk 0:02:36]}
21. Rxb2 {[%clk 0:00:42.3]} 21... Rxb2 {[%clk 0:02:35.8]} 22. h3 {[%clk
0:00:44.2]} 22... Ke7 {[%clk 0:02:32]} 23. Rd4 {[%clk 0:00:44.1]} 23... Bxd4
{[%clk 0:02:31.9]} 24. c3 {[%clk 0:00:44.5]} 24... Bxc3 {[%clk 0:02:22.4]} 25.
Bc4 {[%clk 0:00:46.4]} 25... Bxc4 {[%clk 0:02:19.6]} 26. e5 {[%clk 0:00:48.3]}
26... Bxe5 {[%clk 0:02:19.6]} 27. f4 {[%clk 0:00:50.2]} 27... Bxf4 {[%clk
0:02:19.5]} 28. g3 {[%clk 0:00:52.1]} 28... Be3+ {[%clk 0:02:19.7]} 29. Kh1
{[%clk 0:00:52.4]} 29... Bd5# {[%clk 0:02:20.9]} 0-1

[Event "*** Qualifier 1: Titled Tuesday 3|2 Blitz"]
[Site "Chess.com"]
[Date "2017.04.04"]
[Round "5"]
[White "TheNextLevelFan"]
[Black "CalinGheorghiu"]
[Result "1-0"]
[WhiteElo "2383"]
[BlackElo "2249"]
[TimeControl "180+2"]
[EndTime "14:09:37 PDT"]
[Termination "TheNextLevelFan won by resignation"]

1. d4 {[%clk 0:03:02]} 1... Nf6 {[%clk 0:03:00.1]} 2. c4 {[%clk 0:03:03.2]} 2...
e6 {[%clk 0:02:59.4]} 3. Nf3 {[%clk 0:03:04.3]} 3... c5 {[%clk 0:02:59.2]} 4. d5
{[%clk 0:03:03.2]} 4... exd5 {[%clk 0:02:59.9]} 5. cxd5 {[%clk 0:03:04.1]} 5...
d6 {[%clk 0:03:01.2]} 6. Nc3 {[%clk 0:03:05.2]} 6... g6 {[%clk 0:03:01.7]} 7. g3
{[%clk 0:03:04.9]} 7... Bg7 {[%clk 0:03:02.1]} 8. Bg2 {[%clk 0:03:06]} 8... O-O
{[%clk 0:03:03.1]} 9. O-O {[%clk 0:03:07.2]} 9... Re8 {[%clk 0:03:02.9]} 10. Nd2
{[%clk 0:03:07.8]} 10... b6 {[%clk 0:03:01.7]} 11. Nc4 {[%clk 0:02:57.9]} 11...
Ba6 {[%clk 0:02:57.8]} 12. Qb3 {[%clk 0:02:57.3]} 12... Ng4 {[%clk 0:02:13.3]}
13. Bf4 {[%clk 0:02:52.6]} 13... Ne5 {[%clk 0:02:09.2]} 14. Nxe5 {[%clk
0:02:43.8]} 14... Bxe5 {[%clk 0:01:51.6]} 15. Bxe5 {[%clk 0:02:44.3]} 15... Rxe5
{[%clk 0:01:52.3]} 16. Rfe1 {[%clk 0:02:41.9]} 16... Qe8 {[%clk 0:01:45.3]} 17.
e4 {[%clk 0:02:37.5]} 17... Nd7 {[%clk 0:01:44.5]} 18. f4 {[%clk 0:02:25.2]}
18... Re7 {[%clk 0:01:39.8]} 19. Qa3 {[%clk 0:02:26.2]} 19... Bd3 {[%clk
0:01:26.4]} 20. Re3 {[%clk 0:02:24.3]} 20... c4 {[%clk 0:01:03.8]} 21. Qxd6
{[%clk 0:02:24]} 21... Nc5 {[%clk 0:01:04.9]} 22. e5 {[%clk 0:02:19.5]} 22...
Rd8 {[%clk 0:00:55.8]} 23. Qc6 {[%clk 0:02:20.1]} 23... Qf8 {[%clk 0:00:51.3]}
24. d6 {[%clk 0:02:16.7]} 24... Ree8 {[%clk 0:00:52.5]} 25. Nd5 {[%clk
0:02:17.4]} 25... Kh8 {[%clk 0:00:47.1]} 26. Nc7 {[%clk 0:02:10.7]} 26... Rxd6
{[%clk 0:00:43.6]} 27. Qxe8 {[%clk 0:02:09.9]} 1-0

[Event "*** Qualifier 1: Titled Tuesday 3|2 Blitz"]
[Site "Chess.com"]
[Date "2017.04.04"]
[Round "5"]
[White "Rock700chess"]
[Black "peteseeger"]
[Result "1-0"]
[WhiteElo "2214"]
[BlackElo "2114"]
[TimeControl "180+2"]
[EndTime "14:09:45 PDT"]
[Termination "Rock700chess won by resignation"]

1. e4 {[%clk 0:03:02]} 1... c5 {[%clk 0:02:59.7]} 2. d4 {[%clk 0:03:02.6]} 2...
cxd4 {[%clk 0:02:59.4]} 3. c3 {[%clk 0:03:04.2]} 3... Nf6 {[%clk 0:03:00.1]} 4.
e5 {[%clk 0:03:03.7]} 4... Nd5 {[%clk 0:03:00.2]} 5. cxd4 {[%clk 0:03:03.6]}
5... e6 {[%clk 0:03:00.2]} 6. Nf3 {[%clk 0:03:03.2]} 6... d6 {[%clk 0:03:00.2]}
7. Bc4 {[%clk 0:02:59.7]} 7... Be7 {[%clk 0:02:55.6]} 8. O-O {[%clk 0:02:58.5]}
8... O-O {[%clk 0:02:56]} 9. Qe2 {[%clk 0:02:58.5]} 9... b6 {[%clk 0:02:55.8]}
10. a4 {[%clk 0:02:56.1]} 10... Bb7 {[%clk 0:02:53.6]} 11. Nc3 {[%clk
0:02:55.1]} 11... Nxc3 {[%clk 0:02:51.2]} 12. bxc3 {[%clk 0:02:57]} 12... Nd7
{[%clk 0:02:51.7]} 13. Bd3 {[%clk 0:02:55.7]} 13... dxe5 {[%clk 0:02:43.7]} 14.
Nxe5 {[%clk 0:02:57.6]} 14... Nxe5 {[%clk 0:02:44]} 15. Qxe5 {[%clk 0:02:59.5]}
15... Rc8 {[%clk 0:02:37.4]} 16. Bd2 {[%clk 0:02:58.5]} 16... Bf6 {[%clk
0:02:24.1]} 17. Qg3 {[%clk 0:02:57.4]} 17... Qd5 {[%clk 0:02:19.4]} 18. f4
{[%clk 0:02:53.7]} 18... Rfd8 {[%clk 0:02:11.8]} 19. Rae1 {[%clk 0:02:52.4]}
19... Bh4 {[%clk 0:02:00.3]} 20. Bxh7+ {[%clk 0:02:42.4]} 20... Kf8 {[%clk
0:01:56.4]} 21. Qh3 {[%clk 0:02:39.7]} 21... Bxe1 {[%clk 0:01:54.7]} 22. Rxe1
{[%clk 0:02:41.4]} 22... f5 {[%clk 0:01:33.9]} 23. Bg6 {[%clk 0:02:40.4]} 23...
Ke7 {[%clk 0:01:20.8]} 24. Bxf5 {[%clk 0:02:39.9]} 24... Rd6 {[%clk 0:00:57]}
25. Be4 {[%clk 0:02:22.4]} 25... Qa2 {[%clk 0:00:50.9]} 26. Bxb7 {[%clk
0:02:19.7]} 26... Qxd2 {[%clk 0:00:50.9]} 27. Qh4+ {[%clk 0:02:19]} 27... g5
{[%clk 0:00:35.2]} 28. Qxg5+ {[%clk 0:02:17]} 28... Kf7 {[%clk 0:00:35.2]} 29.
Qh5+ {[%clk 0:02:16.6]} 29... Kg7 {[%clk 0:00:33.5]} 30. Qe5+ {[%clk 0:02:16.1]}
30... Kf7 {[%clk 0:00:32]} 31. Bxc8 {[%clk 0:02:15.4]} 1-0

[Event "*** Qualifier 1: Titled Tuesday 3|2 Blitz"]
[Site "Chess.com"]
[Date "2017.04.04"]
[Round "5"]
[White "micfel"]
[Black "saraswathii"]
[Result "0-1"]
[WhiteElo "2125"]
[BlackElo "2190"]
[TimeControl "180+2"]
[EndTime "14:10:07 PDT"]
[Termination "saraswathii won by resignation"]

1. e4 {[%clk 0:02:59.8]} 1... c5 {[%clk 0:02:50.5]} 2. Nf3 {[%clk 0:03:00.1]}
2... e6 {[%clk 0:02:45.7]} 3. d4 {[%clk 0:03:00.2]} 3... cxd4 {[%clk 0:02:44.5]}
4. Nxd4 {[%clk 0:03:00.7]} 4... Nf6 {[%clk 0:02:41.1]} 5. Nc3 {[%clk 0:03:00.4]}
5... Nc6 {[%clk 0:02:37.2]} 6. Ndb5 {[%clk 0:03:00.1]} 6... Bb4 {[%clk
0:02:28.6]} 7. Nd6+ {[%clk 0:02:30.2]} 7... Ke7 {[%clk 0:02:22.8]} 8. Bf4 {[%clk
0:02:28.6]} 8... e5 {[%clk 0:02:14.2]} 9. Nf5+ {[%clk 0:02:25.4]} 9... Kf8
{[%clk 0:01:57.6]} 10. Bg5 {[%clk 0:02:22.2]} 10... d5 {[%clk 0:01:55.1]} 11. a3
{[%clk 0:02:14.3]} 11... Bxc3+ {[%clk 0:01:50.8]} 12. bxc3 {[%clk 0:02:14.3]}
12... Qa5 {[%clk 0:01:34.4]} 13. Bd3 {[%clk 0:01:51.6]} 13... dxe4 {[%clk
0:01:28.8]} 14. Bxf6 {[%clk 0:01:48.8]} 14... Bxf5 {[%clk 0:01:25.7]} 15. Bxe4
{[%clk 0:01:34.1]} 15... Qxc3+ {[%clk 0:01:19.3]} 16. Kf1 {[%clk 0:01:32.7]}
16... Bxe4 {[%clk 0:01:16.6]} 17. Bh4 {[%clk 0:01:23.4]} 17... Bxc2 {[%clk
0:00:59.8]} 18. Qd6+ {[%clk 0:01:19.9]} 18... Kg8 {[%clk 0:00:57.1]} 19. Rc1
{[%clk 0:01:16.1]} 19... Bd3+ {[%clk 0:00:54.2]} 0-1

[Event "*** Qualifier 1: Titled Tuesday 3|2 Blitz"]
[Site "Chess.com"]
[Date "2017.04.04"]
[Round "5"]
[White "yian123"]
[Black "Keranke"]
[Result "0-1"]
[WhiteElo "2411"]
[BlackElo "2718"]
[TimeControl "180+2"]
[EndTime "14:10:10 PDT"]
[Termination "Keranke won by resignation"]

1. e4 {[%clk 0:03:01.9]} 1... g6 {[%clk 0:02:58.7]} 2. d4 {[%clk 0:02:58.3]}
2... Bg7 {[%clk 0:03:00]} 3. Nc3 {[%clk 0:03:00]} 3... d6 {[%clk 0:03:01.4]} 4.
Be3 {[%clk 0:03:00.6]} 4... a6 {[%clk 0:03:02.7]} 5. Qd2 {[%clk 0:03:01.2]} 5...
b5 {[%clk 0:03:03.9]} 6. a4 {[%clk 0:02:58.1]} 6... b4 {[%clk 0:03:03.6]} 7. Nd5
{[%clk 0:02:59.6]} 7... a5 {[%clk 0:03:02.5]} 8. c3 {[%clk 0:02:56.6]} 8... bxc3
{[%clk 0:03:02.4]} 9. Qxc3 {[%clk 0:02:55.8]} 9... c6 {[%clk 0:03:01]} 10. Nf4
{[%clk 0:02:51.3]} 10... Nf6 {[%clk 0:03:00]} 11. f3 {[%clk 0:02:51.7]} 11...
O-O {[%clk 0:03:00]} 12. Bd3 {[%clk 0:02:37.4]} 12... c5 {[%clk 0:03:00.5]} 13.
Nfe2 {[%clk 0:02:26]} 13... Nc6 {[%clk 0:02:56.6]} 14. Bb5 {[%clk 0:02:18.6]}
14... Nb4 {[%clk 0:02:46.4]} 15. Rd1 {[%clk 0:02:13.6]} 15... Bd7 {[%clk
0:02:41.2]} 16. Bxd7 {[%clk 0:01:53.6]} 16... Qxd7 {[%clk 0:02:42]} 17. Qb3
{[%clk 0:01:46.6]} 17... c4 {[%clk 0:02:07.2]} 18. Qxc4 {[%clk 0:01:45.5]} 18...
Rfc8 {[%clk 0:02:04.4]} 19. Qb5 {[%clk 0:01:40.3]} 19... Qe6 {[%clk 0:01:55]}
20. d5 {[%clk 0:01:27.9]} 20... Nfxd5 {[%clk 0:01:46.5]} 21. Rxd5 {[%clk
0:01:27.8]} 21... Nxd5 {[%clk 0:01:37.9]} 22. Qxd5 {[%clk 0:01:27.6]} 22... Qxd5
{[%clk 0:01:39.1]} 23. exd5 {[%clk 0:01:29.5]} 23... Bxb2 {[%clk 0:01:40.7]} 24.
Kf2 {[%clk 0:01:25.9]} 24... Rc4 {[%clk 0:01:41.1]} 25. Nh3 {[%clk 0:01:18.6]}
25... Rxa4 {[%clk 0:01:41.7]} 26. Rb1 {[%clk 0:01:19.8]} 26... Bf6 {[%clk
0:01:39.1]} 27. Nhf4 {[%clk 0:01:17.8]} 27... Rb4 {[%clk 0:01:38.6]} 28. Rxb4
{[%clk 0:01:04.6]} 28... axb4 {[%clk 0:01:40.5]} 29. Nd3 {[%clk 0:01:02.8]}
29... b3 {[%clk 0:01:40.3]} 30. Nd4 {[%clk 0:01:03.3]} 30... b2 {[%clk
0:01:36.9]} 31. Nxb2 {[%clk 0:01:00.4]} 31... Ra2 {[%clk 0:01:38]} 32. Ne2
{[%clk 0:00:59.9]} 32... Rxb2 {[%clk 0:01:39]} 0-1

[Event "*** Qualifier 1: Titled Tuesday 3|2 Blitz"]
[Site "Chess.com"]
[Date "2017.04.04"]
[Round "5"]
[White "Quiet_Desperation"]
[Black "Generalas"]
[Result "0-1"]
[WhiteElo "2093"]
[BlackElo "2194"]
[TimeControl "180+2"]
[EndTime "14:10:19 PDT"]
[Termination "Generalas won by resignation"]

1. e4 {[%clk 0:03:01.9]} 1... e5 {[%clk 0:03:00.5]} 2. Nf3 {[%clk 0:03:01.8]}
2... Nc6 {[%clk 0:03:01.4]} 3. Bb5 {[%clk 0:03:02.5]} 3... a6 {[%clk 0:03:01.8]}
4. Ba4 {[%clk 0:03:02.3]} 4... Nf6 {[%clk 0:03:02.7]} 5. O-O {[%clk 0:03:02.8]}
5... Be7 {[%clk 0:03:00.6]} 6. Re1 {[%clk 0:03:02.6]} 6... b5 {[%clk 0:03:00.6]}
7. Bb3 {[%clk 0:03:02.6]} 7... O-O {[%clk 0:03:01.3]} 8. c3 {[%clk 0:03:04]}
8... d5 {[%clk 0:02:59.6]} 9. exd5 {[%clk 0:03:01.8]} 9... Nxd5 {[%clk
0:03:01.5]} 10. d4 {[%clk 0:03:01.7]} 10... exd4 {[%clk 0:02:53.9]} 11. cxd4
{[%clk 0:02:55.5]} 11... Bb4 {[%clk 0:02:38.6]} 12. Bd2 {[%clk 0:02:46.9]} 12...
Bg4 {[%clk 0:01:59.8]} 13. Nc3 {[%clk 0:02:43.7]} 13... Nb6 {[%clk 0:01:47.6]}
14. a3 {[%clk 0:01:58.4]} 14... Be7 {[%clk 0:01:37.2]} 15. Be3 {[%clk
0:01:49.3]} 15... Na5 {[%clk 0:01:26.8]} 16. Bc2 {[%clk 0:01:39.3]} 16... Nac4
{[%clk 0:01:25.7]} 17. Rb1 {[%clk 0:01:38.8]} 17... Nxe3 {[%clk 0:01:23.1]} 18.
fxe3 {[%clk 0:01:39]} 18... g6 {[%clk 0:01:14.5]} 19. h3 {[%clk 0:01:36.1]}
19... Be6 {[%clk 0:01:06.3]} 20. Ne5 {[%clk 0:01:33.5]} 20... Qe8 {[%clk
0:01:01]} 21. Ne4 {[%clk 0:01:26]} 21... Rd8 {[%clk 0:00:57.6]} 22. Qf3 {[%clk
0:01:10.9]} 22... f5 {[%clk 0:00:56.2]} 23. Nc3 {[%clk 0:01:02.4]} 23... Nc4
{[%clk 0:00:56.6]} 24. Nxc4 {[%clk 0:00:57.6]} 24... Bxc4 {[%clk 0:00:57.3]} 25.
Qc6 {[%clk 0:00:52.5]} 25... Qxc6 {[%clk 0:00:53.4]} 0-1

[Event "*** Qualifier 1: Titled Tuesday 3|2 Blitz"]
[Site "Chess.com"]
[Date "2017.04.04"]
[Round "5"]
[White "P0ubelle"]
[Black "AndrewMcStone"]
[Result "1-0"]
[WhiteElo "2100"]
[BlackElo "1989"]
[TimeControl "180+2"]
[EndTime "14:10:21 PDT"]
[Termination "P0ubelle won by resignation"]

1. e4 {[%clk 0:03:02]} 1... e6 {[%clk 0:03:00.7]} 2. d4 {[%clk 0:03:02.3]} 2...
d5 {[%clk 0:03:02]} 3. Nd2 {[%clk 0:03:03.7]} 3... Nf6 {[%clk 0:03:02]} 4. e5
{[%clk 0:03:04.3]} 4... Nfd7 {[%clk 0:03:03.6]} 5. Bd3 {[%clk 0:03:05.8]} 5...
c5 {[%clk 0:03:04.7]} 6. c3 {[%clk 0:03:07.4]} 6... Nc6 {[%clk 0:03:06.2]} 7.
Ngf3 {[%clk 0:03:08.1]} 7... f6 {[%clk 0:02:53]} 8. exf6 {[%clk 0:03:03.4]} 8...
Nxf6 {[%clk 0:02:49.8]} 9. O-O {[%clk 0:03:04.3]} 9... cxd4 {[%clk 0:02:43]} 10.
cxd4 {[%clk 0:03:04.1]} 10... Bd6 {[%clk 0:02:44]} 11. Re1 {[%clk 0:03:04.5]}
11... Qc7 {[%clk 0:02:42.7]} 12. Nf1 {[%clk 0:03:03.1]} 12... O-O {[%clk
0:02:38.4]} 13. Bg5 {[%clk 0:03:03.2]} 13... Bd7 {[%clk 0:02:14.6]} 14. Rc1
{[%clk 0:02:57.6]} 14... h6 {[%clk 0:01:30.5]} 15. Bh4 {[%clk 0:02:48.2]} 15...
g5 {[%clk 0:01:03.5]} 16. Bg3 {[%clk 0:02:00.1]} 16... Bf4 {[%clk 0:01:02.3]}
17. Ne3 {[%clk 0:01:20]} 17... Bxg3 {[%clk 0:00:39.1]} 18. hxg3 {[%clk 0:01:15]}
18... Rae8 {[%clk 0:00:20.3]} 19. Ne5 {[%clk 0:01:13.3]} 19... Nxe5 {[%clk
0:00:18]} 20. Rxc7 {[%clk 0:01:12.9]} 1-0

[Event "*** Qualifier 1: Titled Tuesday 3|2 Blitz"]
[Site "Chess.com"]
[Date "2017.04.04"]
[Round "5"]
[White "indfraeng"]
[Black "pKiLz5Rn9b"]
[Result "0-1"]
[WhiteElo "1765"]
[BlackElo "2595"]
[TimeControl "180+2"]
[EndTime "14:10:30 PDT"]
[Termination "pKiLz5Rn9b won by resignation"]

1. d4 {[%clk 0:03:02]} 1... Nf6 {[%clk 0:02:57.7]} 2. c4 {[%clk 0:03:01.4]} 2...
e6 {[%clk 0:02:58.3]} 3. Nc3 {[%clk 0:03:00.9]} 3... Bb4 {[%clk 0:02:59]} 4. Qc2
{[%clk 0:02:59.6]} 4... Nc6 {[%clk 0:02:57.3]} 5. Nf3 {[%clk 0:02:23.8]} 5...
O-O {[%clk 0:02:57.1]} 6. Bg5 {[%clk 0:02:24.8]} 6... h6 {[%clk 0:02:56.3]} 7.
Bh4 {[%clk 0:02:25.4]} 7... d6 {[%clk 0:02:56.2]} 8. e4 {[%clk 0:02:23.6]} 8...
e5 {[%clk 0:02:55.4]} 9. d5 {[%clk 0:02:22]} 9... Nd4 {[%clk 0:02:55.4]} 10. Qd3
{[%clk 0:02:22.8]} 10... Nxf3+ {[%clk 0:02:46.9]} 11. Qxf3 {[%clk 0:02:22.9]}
11... Bxc3+ {[%clk 0:02:43.7]} 12. bxc3 {[%clk 0:02:21.4]} 12... g5 {[%clk
0:02:43.6]} 13. Bg3 {[%clk 0:02:14.5]} 13... Bg4 {[%clk 0:02:43.9]} 14. Qe3
{[%clk 0:02:15]} 14... Nxe4 {[%clk 0:02:33.5]} 15. Bxe5 {[%clk 0:01:58.7]} 15...
dxe5 {[%clk 0:02:30.3]} 16. Qxe4 {[%clk 0:01:59.3]} 16... Bd7 {[%clk 0:02:30.8]}
17. Bd3 {[%clk 0:01:59.2]} 17... f5 {[%clk 0:02:30.7]} 18. Qe3 {[%clk 0:01:58]}
18... Qf6 {[%clk 0:02:32]} 19. O-O {[%clk 0:01:58.2]} 19... Rae8 {[%clk
0:02:31.8]} 20. Rab1 {[%clk 0:01:55.6]} 20... b6 {[%clk 0:02:31.4]} 21. c5
{[%clk 0:01:56.2]} 21... e4 {[%clk 0:02:30.7]} 22. Bb5 {[%clk 0:01:53.6]} 22...
Bxb5 {[%clk 0:02:29]} 23. Rxb5 {[%clk 0:01:55.5]} 23... f4 {[%clk 0:02:29.1]}
24. Qd4 {[%clk 0:01:55.9]} 24... e3 {[%clk 0:02:23.5]} 25. fxe3 {[%clk
0:01:53.9]} 25... Rxe3 {[%clk 0:02:21.2]} 26. cxb6 {[%clk 0:01:33.2]} 26... axb6
{[%clk 0:02:20.6]} 27. d6 {[%clk 0:01:31]} 27... Qxd4 {[%clk 0:02:14.2]} 28.
cxd4 {[%clk 0:01:31.5]} 28... cxd6 {[%clk 0:02:16.1]} 29. Rxb6 {[%clk
0:01:32.5]} 29... Rf6 {[%clk 0:02:15.9]} 30. Rd1 {[%clk 0:01:32.4]} 30... Re2
{[%clk 0:02:14.3]} 31. a4 {[%clk 0:01:32.9]} 31... g4 {[%clk 0:02:15.5]} 32.
Rb8+ {[%clk 0:01:32.6]} 32... Kg7 {[%clk 0:02:16.2]} 33. a5 {[%clk 0:01:33.6]}
33... Ra2 {[%clk 0:02:15.9]} 34. Rb7+ {[%clk 0:01:33.4]} 34... Kg6 {[%clk
0:02:16.2]} 35. Ra7 {[%clk 0:01:32.1]} 35... f3 {[%clk 0:02:15.2]} 36. Ra8
{[%clk 0:01:30.8]} 36... Rxg2+ {[%clk 0:02:11.1]} 37. Kf1 {[%clk 0:01:24.6]}
37... Rxh2 {[%clk 0:02:10.5]} 38. Kg1 {[%clk 0:01:22.6]} 38... Rg2+ {[%clk
0:02:10]} 39. Kf1 {[%clk 0:01:23.4]} 39... Ra2 {[%clk 0:02:08.6]} 40. a6 {[%clk
0:01:24]} 40... Kg7 {[%clk 0:02:04.2]} 41. a7 {[%clk 0:01:24.4]} 41... g3 {[%clk
0:02:04.1]} 42. Kg1 {[%clk 0:01:18.5]} 42... f2+ {[%clk 0:01:59.8]} 43. Kf1
{[%clk 0:01:15.2]} 43... g2+ {[%clk 0:02:00.8]} 44. Kxg2 {[%clk 0:01:14.9]}
44... f1=Q+ {[%clk 0:02:00.6]} 0-1